bitfinex/quotes_BTCUSD_20251221
["timestamp","ask_amount","ask_price","bid_price","bid_amount"]
[1766346693324,0.00312034,88524.0,88520.0,0.01129688]
[1766346693524,0.00312034,88524.0,88519.0,0.129387]
[1766346693746,0.00312034,88524.0,88518.0,0.22305]
[1766346694341,0.00312034,88524.0,88517.0,0.01129726]
[1766346694964,6.46e-05,88524.0,88517.0,0.01129726]
[1766346695136,6.46e-05,88524.0,88518.0,0.01129713]
[1766346695501,6.46e-05,88524.0,88519.0,0.011297]
[1766346695704,6.46e-05,88524.0,88520.0,0.01129688]
[1766346696423,0.22587269,88546.0,88519.0,0.011297]
[1766346696424,0.0002,88541.0,88528.0,0.23396]
[1766346696655,0.04063581,88553.0,88527.0,0.13304598]
[1766346696656,0.04063581,88553.0,88536.0,0.05647407]
[1766346696657,0.01129292,88551.0,88536.0,0.05647407]
[1766346696871,0.01137764,88551.0,88537.0,0.12743]
[1766346697071,0.01129305,88550.0,88537.0,0.13872471]
[1766346697279,0.0112933,88548.0,88537.0,0.12743]
[1766346697492,0.01129305,88550.0,88540.0,0.23396]
[1766346697822,0.01129305,88550.0,88537.0,0.01697471]
[1766346697823,8.472e-05,88551.0,88542.0,0.12175]
[1766346698036,8.472e-05,88551.0,88544.0,0.01357251]
[1766346698189,8.472e-05,88551.0,88542.0,0.12175]
[1766346698783,8.472e-05,88551.0,88544.0,0.01357251]
[1766346698987,0.01137764,88551.0,88544.0,0.01357251]
[1766346699192,0.01137764,88551.0,88542.0,0.12743]
[1766346699193,8.472e-05,88551.0,88542.0,0.12743]
[1766346699393,8.472e-05,88551.0,88542.0,0.13872407]
[1766346699595,8.472e-05,88551.0,88543.0,0.005131]
[1766346699596,0.0565497,88551.0,88543.0,0.005131]
[1766346699799,0.01129305,88550.0,88542.0,0.00568]
[1766346700004,0.00055,88543.0,88542.0,0.00568]
[1766346700213,0.00055,88543.0,88535.0,0.12175]
[1766346700214,0.00055,88543.0,88540.0,0.00568]
[1766346700420,0.0112933,88548.0,88540.0,0.00568]
[1766346700627,0.01129318,88549.0,88540.0,0.00568]
[1766346700846,0.01137764,88551.0,88540.0,0.00568]
[1766346701062,0.01129318,88549.0,88540.0,0.00568]
[1766346701264,0.0112933,88548.0,88540.0,0.00568]
[1766346701465,0.01129318,88549.0,88540.0,0.00568]
[1766346702502,0.01129343,88547.0,88535.0,0.13304496]
[1766346702652,0.01129356,88546.0,88537.0,0.00568]
[1766346702848,0.01129343,88547.0,88537.0,0.00568]
[1766346703229,0.01129433,88540.0,88529.0,0.12175]
[1766346703443,8.472e-05,88551.0,88530.0,0.00568]
[1766346703444,0.01129394,88543.0,88530.0,0.00568]
[1766346703645,0.01129407,88542.0,88530.0,0.0169756]
[1766346703846,0.01129407,88542.0,88530.0,0.00568]
[1766346704245,0.00030745,88531.0,88530.0,0.00568]
[1766346704474,4.5e-07,88531.0,88530.0,0.00568]
[1766346706254,4.5e-07,88531.0,88530.0,0.12743]
[1766346707987,4.5e-07,88531.0,88530.0,0.36139]
[1766346713324,4.5e-07,88531.0,88530.0,0.23964]
[1766346713469,4.5e-07,88531.0,88530.0,0.00568]
[1766346713664,4.5e-07,88531.0,88527.0,0.01129598]
[1766346713918,0.05646925,88544.0,88524.0,0.05648129]
[1766346713919,0.0001,88553.0,88524.0,0.01357251]
[1766346714115,0.03049479,88570.0,88524.0,0.01357251]
[1766346714116,0.01129114,88565.0,88552.0,0.01129279]
[1766346714332,0.01129063,88569.0,88552.0,0.01129279]
[1766346714333,0.01129088,88567.0,88555.0,0.12175]
[1766346714535,0.00568,88566.0,88555.0,0.13304241]
[1766346714691,0.00568,88566.0,88556.0,0.01129228]
[1766346714873,0.00568,88566.0,88555.0,0.12175]
[1766346715078,0.00568,88566.0,88554.0,0.23396]
[1766346715480,0.00568,88566.0,88550.0,0.17821463]
[1766346715481,0.05645176,88572.0,88550.0,0.17821463]
[1766346715483,0.25624795,88593.0,88563.0,0.01129139]
[1766346715694,0.45141673,88610.0,88550.0,0.46036937]
[1766346715695,0.01128999,88574.0,88566.0,0.001099]
[1766346715894,0.01128999,88574.0,88559.0,0.00568]
[1766346716135,0.02486275,88572.0,88559.0,0.00568]
[1766346716337,0.01357251,88572.0,88561.0,0.01129165]
[1766346716517,0.02486275,88572.0,88559.0,0.0169719]
[1766346716714,0.00126255,88577.0,88566.0,0.35571]
[1766346716912,0.01128961,88577.0,88566.0,0.35571]
[1766346717165,0.00568,88577.0,88566.0,0.233411]
[1766346717395,0.01138163,88583.0,88567.0,0.01129088]
[1766346717596,0.01138163,88583.0,88566.0,0.233411]
[1766346717597,9.279e-05,88583.0,88580.0,0.01128923]
[1766346717801,9.279e-05,88583.0,88581.0,0.01354692]
[1766346718004,7.9e-07,88583.0,88582.0,0.01354677]
[1766346718248,7.9e-07,88583.0,88582.0,0.06999164]
[1766346718453,7.9e-07,88583.0,88582.0,0.17819487]
[1766346718656,7.9e-07,88583.0,88582.0,0.12175]
[1766346718885,0.0001,88595.0,88589.0,0.12175]
[1766346719284,0.0001,88595.0,88590.0,0.12175]
[1766346719500,0.0001,88595.0,88581.0,0.23935303]
[1766346719501,0.01357251,88627.0,88581.0,0.23935303]
[1766346719503,0.01128362,88624.0,88595.0,0.0001]
[1766346719721,0.01128362,88624.0,88616.0,0.01128464]
[1766346719722,0.00035692,88624.0,88616.0,0.01128464]
[1766346719860,0.00035692,88624.0,88617.0,0.13225086]
[1766346720063,0.01128184,88638.0,88622.0,0.01128387]
[1766346720258,0.01128184,88638.0,88617.0,0.24446086]
[1766346720259,0.22561316,88648.0,88624.0,2.99e-06]
[1766346720260,0.00030705,88632.0,88624.0,2.99e-06]
[1766346720511,0.01696273,88631.0,88624.0,2.99e-06]
[1766346720723,0.01357251,88626.0,88617.0,0.02178538]
[1766346720934,0.01357251,88626.0,88590.0,0.52125129]
[1766346720935,0.01357251,88626.0,88597.0,0.23396]
[1766346720936,0.0112854,88610.0,88597.0,0.23396]
[1766346721145,0.00568,88610.0,88603.0,0.01128629]
[1766346721368,0.000445,88603.0,88597.0,0.23396]
[1766346721579,0.01128668,88600.0,88588.0,0.12175]
[1766346721792,0.01128668,88600.0,88570.0,0.52125129]
[1766346721793,0.01128668,88600.0,88575.0,0.12175]
[1766346721794,0.05088,88599.0,88575.0,0.12175]
[1766346721993,0.05088,88599.0,88574.0,0.23396]
[1766346721994,0.47394188,88590.0,88571.0,0.03390395]
[1766346722207,0.05644351,88585.0,88571.0,0.01129037]
[1766346722418,0.05644351,88585.0,88570.0,0.0112905]
[1766346722419,0.0452,88599.0,88570.0,0.0112905]
[1766346722420,0.01128782,88591.0,88577.0,0.13303961]
[1766346722618,0.46036937,88610.0,88580.0,0.01128923]
[1766346722619,0.0452,88589.0,88580.0,0.01128923]
[1766346722847,0.0452,88589.0,88577.0,0.13303961]
[1766346722848,0.05088,88590.0,88579.0,0.01128935]
[1766346723050,0.05088,88590.0,88578.0,0.01128948]
[1766346723051,0.000445,88579.0,88578.0,0.01128948]
[1766346723257,0.0452,88590.0,88582.0,0.01128897]
[1766346723409,0.0452,88590.0,88576.0,0.23396]
[1766346723410,0.01128579,88607.0,88580.0,0.46036937]
[1766346723612,0.01357251,88628.0,88596.0,0.01128719]
[1766346723613,0.00568,88606.0,88596.0,0.01128719]
[1766346723937,0.00568,88605.0,88597.0,0.01128706]
[1766346724473,0.00568,88605.0,88592.0,0.05478729]
[1766346724674,0.00568,88605.0,88594.0,0.01128744]
[1766346724789,0.01128566,88608.0,88592.0,0.05478729]
[1766346724989,0.000104,88592.0,88583.0,0.01128884]
[1766346725188,0.05214255,88607.0,88584.0,0.0564436]
[1766346725189,0.00568,88591.0,88584.0,0.0564436]
[1766346725392,0.00568,88591.0,88587.0,0.01128833]
[1766346725662,0.00568,88591.0,88582.0,0.05644487]
[1766346725663,0.00568,88591.0,88576.0,0.13483973]
[1766346725861,0.00568,88591.0,88571.0,0.00035692]
[1766346725863,0.000104,88587.0,88571.0,0.00035692]
[1766346726062,0.01128872,88584.0,88571.0,0.00035692]
[1766346726234,0.01128872,88584.0,88566.0,0.13484101]
[1766346726235,0.01128923,88580.0,88566.0,0.01129101]
[1766346726436,0.00568,88579.0,88569.0,0.00894063]
[1766346726634,0.00568,88579.0,88570.0,0.0112905]
[1766346726862,0.00568,88579.0,88572.0,0.01129024]
[1766346727092,0.00568,88579.0,88574.0,0.01128999]
[1766346727287,0.00568,88579.0,88573.0,0.01129012]
[1766346727489,0.00568,88579.0,88574.0,0.01128999]
[1766346727712,0.005235,88579.0,88575.0,0.01128986]
[1766346727893,0.005235,88579.0,88576.0,0.01128973]
[1766346729053,0.005235,88579.0,88569.0,0.01139063]
[1766346729054,0.000549,88576.0,88569.0,0.01139063]
[1766346729235,0.000549,88576.0,88568.0,0.13474075]
[1766346729440,0.000549,88576.0,88569.0,0.01129063]
[1766346729678,0.005235,88579.0,88567.0,0.22885]
[1766346729885,0.01128948,88578.0,88567.0,0.22885]
[1766346730088,0.01128948,88578.0,88565.0,0.01129114]
[1766346730089,0.01128961,88577.0,88565.0,0.01129114]
[1766346730429,0.01128872,88584.0,88568.0,0.22885]
[1766346730583,0.00568,88583.0,88577.0,0.00055]
[1766346730827,0.01696884,88583.0,88570.0,0.0112905]
[1766346731034,0.00568,88583.0,88571.0,0.01129037]
[1766346731343,0.00568,88583.0,88572.0,0.01129024]
[1766346731686,0.00568,88583.0,88571.0,0.01129037]
[1766346731886,0.01128782,88591.0,88575.0,0.05644905]
[1766346732086,0.01128795,88590.0,88575.0,0.05644905]
[1766346732374,0.01138808,88589.0,88576.0,0.01128973]
[1766346732523,0.05088,88588.0,88576.0,0.01128973]
[1766346732932,0.05088,88588.0,88577.0,0.01128961]
[1766346733133,0.0001,88589.0,88577.0,0.01128961]
[1766346733355,0.05088,88588.0,88577.0,0.01128961]
[1766346733706,0.00568,88587.0,88579.0,0.01128935]
[1766346734027,0.00568,88587.0,88577.0,0.01128961]
[1766346734431,0.00568,88587.0,88579.0,0.01128935]
[1766346734654,0.00568,88587.0,88576.0,0.12355]
[1766346734868,0.00568,88587.0,88575.0,0.01128986]
[1766346735074,0.00568,88587.0,88576.0,0.01128973]
[1766346735275,0.00568,88587.0,88577.0,0.01128961]
[1766346735476,0.00568,88587.0,88578.0,0.01128948]
[1766346735967,0.00568,88587.0,88577.0,0.01128961]
[1766346736181,0.00568,88587.0,88574.0,0.02178207]
[1766346736386,0.00568,88587.0,88577.0,0.01128961]
[1766346737236,0.00568,88587.0,88576.0,0.02178181]
[1766346738209,0.00568,88587.0,88578.0,0.01128948]
[1766346738415,0.00568,88587.0,88578.0,0.02178156]
[1766346738618,0.00147545,88579.0,88578.0,0.01049208]
[1766346738814,0.00660545,88579.0,88578.0,0.01049208]
[1766346739942,0.0001,88589.0,88578.0,0.02178156]
[1766346740140,0.00568,88588.0,88585.0,0.12355]
[1766346740569,0.00548,88588.0,88584.0,0.24013872]
[1766346741723,0.00548,88588.0,88584.0,0.01128872]
[1766346742154,0.00548,88588.0,88585.0,0.02181073]
[1766346742382,0.00548,88588.0,88585.0,0.01128859]
[1766346742786,0.00548,88588.0,88586.0,0.01052288]
[1766346742993,0.00548,88588.0,88584.0,0.01128872]
[1766346743205,0.00548,88588.0,88585.0,0.02181146]
[1766346743380,0.00548,88588.0,88586.0,0.01052287]
[1766346743655,0.00548,88588.0,88587.0,0.01052287]
[1766346745760,0.00548,88588.0,88587.0,0.0099235]
[1766346746173,0.00568,88588.0,88587.0,0.0099235]
[1766346747222,0.0112868,88599.0,88587.0,0.0099235]
[1766346747223,0.0452,88602.0,88592.0,0.0112877]
[1766346747414,0.0452,88602.0,88590.0,0.24717795]
[1766346747415,0.00568,88601.0,88590.0,0.24717795]
[1766346747828,0.00568,88601.0,88591.0,0.01128782]
[1766346748402,0.00568,88601.0,88590.0,0.24717795]
[1766346748579,0.00568,88601.0,88590.0,0.23589]
[1766346748982,0.00568,88601.0,88590.0,0.24717795]
[1766346749182,0.00568,88601.0,88592.0,0.0112877]
[1766346749379,0.00568,88601.0,88591.0,0.01128782]
[1766346749616,0.00568,88601.0,88592.0,0.06772615]
[1766346749821,0.00568,88601.0,88595.0,0.01128731]
[1766346750184,0.00568,88601.0,88594.0,0.01128744]
[1766346750317,0.00568,88601.0,88593.0,0.01128757]
[1766346750521,0.00568,88601.0,88590.0,0.23589]
[1766346750962,0.00568,88601.0,88591.0,0.01128782]
[1766346751160,0.00568,88601.0,88590.0,0.24717795]
[1766346751366,0.00568,88601.0,88591.0,0.01128782]
[1766346751813,0.00568,88601.0,88593.0,0.01128757]
[1766346752022,0.00568,88601.0,88591.0,0.01128782]
[1766346752586,0.01128642,88602.0,88590.0,0.24717795]
[1766346752901,0.05088,88601.0,88590.0,0.24717795]
[1766346753097,0.05088,88601.0,88592.0,0.0112877]
[1766346753301,0.05088,88601.0,88593.0,0.01128757]
[1766346753865,0.05088,88601.0,88592.0,0.0112877]
[1766346754065,0.05088,88601.0,88590.0,0.24717795]
[1766346754290,0.05088,88601.0,88589.0,0.01128808]
[1766346754493,0.06216655,88601.0,88588.0,0.01128821]
[1766346754672,0.05088,88601.0,88588.0,0.01128821]
[1766346754887,0.00568,88600.0,88592.0,0.0112877]
[1766346755083,0.00568,88599.0,88596.0,0.11891]
[1766346755284,0.01357251,88606.0,88596.0,0.11891]
[1766346755469,0.05084,88605.0,88596.0,0.11891]
[1766346756190,0.05084,88605.0,88595.0,0.24457731]
[1766346756569,0.05084,88605.0,88595.0,0.23329]
[1766346756728,0.05084,88605.0,88595.0,0.24457731]
[1766346757221,0.01536423,88595.0,88578.0,0.0001]
[1766346757372,0.00568,88594.0,88586.0,0.01128846]
[1766346757767,0.00568,88594.0,88587.0,0.0105378]
[1766346758092,0.00568,88594.0,88588.0,0.0105378]
[1766346758268,0.00568,88594.0,88589.0,0.0105378]
[1766346758490,0.00568,88594.0,88590.0,0.0099888]
[1766346758796,0.00568,88594.0,88586.0,0.01128846]
[1766346760098,0.00568,88594.0,88585.0,0.01128859]
[1766346760916,0.00568,88594.0,88585.0,0.00655247]
[1766346761375,0.00568,88593.0,88585.0,0.00655247]
[1766346761609,0.00568,88593.0,88586.0,0.01128846]
[1766346761842,0.00568,88593.0,88587.0,0.01128833]
[1766346762053,0.00568,88592.0,88588.0,0.01128821]
[1766346762304,0.00568,88592.0,88587.0,0.01128833]
[1766346762934,0.00568,88592.0,88589.0,0.01128808]
[1766346763137,0.00781279,88591.0,88589.0,0.01128808]
[1766346763349,0.00033775,88590.0,88589.0,0.01128808]
[1766346763556,7.5e-07,88590.0,88589.0,0.01128808]
[1766346763760,7.5e-07,88590.0,88588.0,0.01128821]
[1766346763965,0.00781279,88591.0,88588.0,0.01128821]
[1766346766883,0.00781279,88591.0,88586.0,0.06773022]
[1766346767455,0.0024746,88592.0,88585.0,0.00655247]
[1766346767654,0.0024746,88592.0,88587.0,0.01128833]
[1766346767860,0.0024746,88592.0,88588.0,0.01128821]
[1766346768687,0.0024746,88592.0,88587.0,0.01095133]
[1766346768906,0.0024746,88592.0,88586.0,0.01128846]
[1766346769109,0.0024746,88592.0,88583.0,0.11891]
[1766346769322,0.0024746,88592.0,88583.0,0.13019884]
[1766346769646,0.0024746,88592.0,88583.0,0.11891]
[1766346770505,0.0024746,88592.0,88584.0,0.01054505]
[1766346770671,0.0024746,88592.0,88585.0,0.01054505]
[1766346770876,0.0024746,88592.0,88586.0,0.01054505]
[1766346771075,0.0024746,88592.0,88583.0,0.11891]
[1766346771076,0.0024746,88592.0,88587.0,0.01054505]
[1766346771283,0.0024746,88592.0,88588.0,0.01054505]
[1766346771494,0.0024746,88592.0,88589.0,0.01054505]
[1766346771695,0.0024746,88592.0,88590.0,0.00999505]
[1766346771899,0.0023746,88592.0,88583.0,0.11891]
[1766346772135,0.0022746,88592.0,88583.0,0.11891]
[1766346772757,0.0135623,88592.0,88583.0,0.11891]
[1766346773155,0.00568,88591.0,88579.0,0.23329]
[1766346773337,0.00568,88591.0,88588.0,0.002]
[1766346774557,0.00568,88590.0,88588.0,0.3542]
[1766346774795,0.0001,88602.0,88592.0,0.0112877]
[1766346775004,0.00568,88601.0,88593.0,0.11881]
[1766346775200,0.00200225,88601.0,88593.0,0.11881]
[1766346775426,0.00190225,88601.0,88593.0,0.11881]
[1766346775851,0.0131888,88601.0,88593.0,0.11881]
[1766346776055,0.00190225,88601.0,88593.0,0.118261]
[1766346776195,0.00568,88600.0,88593.0,0.118261]
[1766346776874,0.00568,88600.0,88590.0,0.45967053]
[1766346776875,0.01128719,88596.0,88588.0,0.002]
[1766346777179,0.00568,88600.0,88560.0,0.60675914]
[1766346777180,0.05643977,88590.0,88575.0,0.24457986]
[1766346777433,0.01128782,88591.0,88575.0,0.24457986]
[1766346777434,0.00568,88589.0,88575.0,0.30102856]
[1766346777730,0.00568,88589.0,88578.0,0.01138948]
[1766346777931,0.00568,88589.0,88579.0,0.01128935]
[1766346778432,0.00568,88589.0,88578.0,0.11901]
[1766346778859,0.01696808,88589.0,88578.0,0.11901]
[1766346779680,0.00568,88589.0,88578.0,0.13029948]
[1766346779977,0.00568,88589.0,88579.0,0.01128935]
[1766346780171,0.00568,88589.0,88578.0,0.11901]
[1766346780369,0.00568,88589.0,88578.0,0.13029948]
[1766346780571,0.01696808,88589.0,88578.0,0.11901]
[1766346781074,0.00568,88589.0,88578.0,0.13029948]
[1766346781277,0.00568,88589.0,88579.0,0.01128935]
[1766346781697,0.00568,88589.0,88578.0,0.36358948]
[1766346782051,0.00568,88589.0,88578.0,0.3523]
[1766346782643,0.00568,88589.0,88578.0,0.36358948]
[1766346782848,0.00568,88589.0,88579.0,0.11891]
[1766346783250,0.00568,88589.0,88580.0,0.11891]
[1766346783669,0.00568,88589.0,88581.0,0.01055114]
[1766346783945,0.00568,88589.0,88582.0,0.01055114]
[1766346784143,0.00568,88589.0,88583.0,0.01055114]
[1766346784371,0.00568,88589.0,88584.0,0.01055114]
[1766346784564,0.00568,88589.0,88585.0,0.01055114]
[1766346784797,0.01696808,88589.0,88586.0,0.01055114]
[1766346785001,0.00568,88589.0,88587.0,0.01055114]
[1766346785229,0.0112877,88592.0,88588.0,0.01055114]
[1766346785440,0.0112877,88592.0,88589.0,1.14e-06]
[1766346785441,0.00568,88591.0,88589.0,1.14e-06]
[1766346785559,0.00568,88591.0,88580.0,0.01128923]
[1766346785758,0.00568,88591.0,88580.0,0.12523923]
[1766346786030,0.00568,88591.0,88581.0,0.11395]
[1766346786599,0.01696782,88591.0,88581.0,0.11395]
[1766346786805,0.00568,88591.0,88582.0,0.11395]
[1766346787430,0.00568,88590.0,88582.0,0.11395]
[1766346787682,0.01128808,88589.0,88578.0,0.0001]
[1766346787885,0.01696795,88590.0,88578.0,0.11405]
[1766346788450,0.01696795,88590.0,88583.0,0.0001]
[1766346789191,0.00568,88590.0,88583.0,0.0001]
[1766346789410,0.01696795,88590.0,88583.0,0.0001]
[1766346790328,0.00568,88590.0,88583.0,0.0001]
[1766346794174,0.00568,88590.0,88579.0,0.01128935]
[1766346794175,0.00568,88590.0,88576.0,0.01138973]
[1766346794398,0.00568,88590.0,88580.0,0.01128923]
[1766346794733,0.00568,88590.0,88581.0,0.0112891]
[1766346794940,0.00568,88590.0,88580.0,0.12523923]
[1766346795362,0.00568,88590.0,88581.0,0.0112891]
[1766346795498,0.00568,88590.0,88580.0,0.11395]
[1766346797398,0.0112877,88592.0,88580.0,0.11395]
[1766346797399,0.00568,88589.0,88581.0,0.01055169]
[1766346797598,0.00568,88589.0,88582.0,0.01055169]
[1766346797758,0.00568,88589.0,88583.0,0.01055169]
[1766346797960,0.00568,88589.0,88584.0,0.01055169]
[1766346798175,0.00558,88589.0,88585.0,0.01055169]
[1766346798383,0.00548,88589.0,88586.0,0.01055169]
[1766346798586,0.00548,88589.0,88587.0,0.01055169]
[1766346798748,0.00548,88589.0,88588.0,0.01055169]
[1766346799365,0.00548,88589.0,88588.0,1.69e-06]
[1766346800066,0.01676808,88589.0,88580.0,0.11395]
[1766346801020,0.00548,88589.0,88580.0,0.11395]
[1766346802035,0.05643674,88595.0,88580.0,0.11395]
[1766346802036,0.03043643,88614.0,88596.0,0.01128719]
[1766346802186,0.03043643,88614.0,88607.0,0.24035]
[1766346802187,0.00035692,88614.0,88607.0,0.24035]
[1766346802393,0.00035692,88614.0,88608.0,0.11395]
[1766346802394,0.00568,88613.0,88608.0,0.11395]
[1766346802592,0.00568,88613.0,88607.0,0.24035]
[1766346802816,0.00568,88613.0,88604.0,0.01128617]
[1766346802817,0.00568,88613.0,88603.0,0.11395]
[1766346803017,0.01696502,88613.0,88603.0,0.11395]
[1766346803735,0.01128515,88612.0,88600.0,0.3543]
[1766346803949,0.01128515,88612.0,88601.0,0.11395]
[1766346804123,0.01128528,88611.0,88601.0,0.11395]
[1766346804328,0.00568,88613.0,88601.0,0.12523655]
[1766346804826,0.00568,88613.0,88602.0,0.01128642]
[1766346805252,0.00568,88613.0,88602.0,0.12523642]
[1766346806009,0.00568,88613.0,88603.0,0.01128629]
[1766346806628,0.00568,88613.0,88602.0,0.12523642]
[1766346806962,0.00568,88613.0,88603.0,0.01128629]
[1766346807169,0.00568,88613.0,88602.0,0.12523642]
[1766346807402,0.00568,88613.0,88603.0,0.01128629]
[1766346807605,0.00568,88613.0,88602.0,0.11395]
[1766346807802,0.00033776,88609.0,88602.0,0.11395]
[1766346808056,0.00035692,88614.0,88603.0,0.01128629]
[1766346808057,0.00568,88608.0,88603.0,0.01128629]
[1766346808253,0.00568,88608.0,88602.0,0.12523642]
[1766346808463,0.005131,88608.0,88604.0,0.01128617]
[1766346808676,0.005131,88608.0,88603.0,0.01128629]
[1766346810347,1.293e-05,88608.0,88604.0,0.01128617]
[1766346810465,1.293e-05,88608.0,88603.0,0.01128629]
[1766346810669,1.293e-05,88608.0,88604.0,0.01128617]
[1766346811680,1.293e-05,88608.0,88604.0,0.13291617]
[1766346811966,1.293e-05,88608.0,88604.0,0.01128617]
[1766346812163,1.293e-05,88608.0,88606.0,0.24231]
[1766346812406,1.293e-05,88608.0,88604.0,0.01128617]
[1766346813252,0.00035692,88614.0,88606.0,0.01128591]
[1766346813456,0.00035692,88614.0,88607.0,0.01128579]
[1766346813457,0.00568,88610.0,88607.0,0.01128579]
[1766346813661,0.00027635,88607.0,88606.0,0.13291591]
[1766346813837,3.5e-07,88607.0,88606.0,0.13291591]
[1766346814048,3.5e-07,88607.0,88606.0,0.13271591]
[1766346815302,3.5e-07,88607.0,88606.0,0.18914549]
[1766346815718,0.00134273,88610.0,88607.0,0.01128579]
[1766346815921,0.00568,88612.0,88610.0,7.153e-05]
[1766346816328,0.00548,88612.0,88610.0,7.153e-05]
[1766346816501,0.00548,88612.0,88609.0,0.01128553]
[1766346817115,0.005409,88612.0,88609.0,0.01128553]
[1766346817315,0.01128311,88628.0,88613.0,0.01128502]
[1766346817545,0.01128311,88628.0,88616.0,0.12412]
[1766346817546,0.05084,88627.0,88616.0,0.12412]
[1766346817783,0.05084,88627.0,88616.0,0.13540464]
[1766346817991,0.05084,88627.0,88616.0,0.12412]
[1766346818128,0.00568,88626.0,88615.0,0.01128477]
[1766346818337,0.00568,88626.0,88617.0,0.01128451]
[1766346818537,0.00568,88626.0,88616.0,0.02482621]
[1766346818752,0.00568,88626.0,88617.0,0.01128451]
[1766346818987,0.00568,88626.0,88616.0,0.01128464]
[1766346819212,0.00568,88626.0,88616.0,0.02482621]
[1766346820412,9.263e-05,88628.0,88618.0,0.06770572]
[1766346820619,0.00568,88625.0,88619.0,0.12412]
[1766346821132,0.00568,88625.0,88620.0,0.01128413]
[1766346821346,0.00568,88625.0,88619.0,0.12412]
[1766346821548,0.00568,88625.0,88620.0,0.01128413]
[1766346821753,0.00568,88625.0,88619.0,0.30104524]
[1766346821928,0.00568,88625.0,88622.0,0.01128387]
[1766346822539,9.263e-05,88628.0,88625.0,0.13540349]
[1766346822777,2.63e-06,88628.0,88625.0,0.19182097]
[1766346823085,2.63e-06,88628.0,88624.0,0.24462362]
[1766346823234,2.63e-06,88628.0,88625.0,0.01128349]
[1766346823433,2.63e-06,88628.0,88624.0,0.24462362]
[1766346823601,2.63e-06,88628.0,88625.0,0.01128349]
[1766346824712,2.63e-06,88628.0,88627.0,0.23334]
[1766346824897,2.63e-06,88628.0,88627.0,0.35746]
[1766346825130,2.63e-06,88628.0,88627.0,0.41387621]
[1766346826274,0.06767978,88653.0,88638.0,0.01128184]
[1766346826495,0.06767978,88653.0,88633.0,0.05641192]
[1766346826496,0.11284122,88651.0,88636.0,0.12412]
[1766346826699,0.01128044,88649.0,88636.0,0.12412]
[1766346826832,0.11284122,88651.0,88636.0,0.12412]
[1766346827256,0.01128044,88649.0,88637.0,0.12412]
[1766346827432,0.01128031,88650.0,88638.0,0.01128184]
[1766346827637,0.01128031,88650.0,88637.0,0.13540197]
[1766346827868,0.01128044,88649.0,88637.0,0.12412]
[1766346828257,0.01128044,88649.0,88632.0,0.05641257]
[1766346828258,0.01127853,88664.0,88641.0,0.01128146]
[1766346828455,0.01127993,88653.0,88649.0,0.000549]
[1766346828636,0.00568,88652.0,88649.0,0.000549]
[1766346828835,0.00568,88652.0,88644.0,0.35746]
[1766346829237,0.01128095,88645.0,88633.0,0.12412]
[1766346829556,0.01128095,88645.0,88632.0,0.23334]
[1766346829557,0.01128146,88641.0,88632.0,0.23334]
[1766346829757,0.01696006,88652.0,88641.0,0.000549]
[1766346829955,0.01128057,88648.0,88636.0,0.01128209]
[1766346830136,0.01696006,88652.0,88634.0,0.06209125]
[1766346830335,0.00568,88652.0,88642.0,0.12412]
[1766346830961,0.00568,88652.0,88643.0,0.0112812]
[1766346831162,0.00568,88652.0,88645.0,0.01128095]
[1766346831424,0.00568,88652.0,88642.0,0.12412]
[1766346831974,0.00568,88651.0,88642.0,0.35746]
[1766346832167,0.00568,88651.0,88635.0,0.06769294]
[1766346832375,0.01128095,88645.0,88635.0,0.12412]
[1766346832990,0.03053358,88644.0,88634.0,0.23334]
[1766346833394,0.01925251,88644.0,88634.0,0.23334]
[1766346833725,0.01254375,88643.0,88630.0,0.01128286]
[1766346833928,0.01254375,88643.0,88627.0,0.01128324]
[1766346834231,0.01254375,88643.0,88621.0,0.23334]
[1766346834232,0.01128247,88633.0,88621.0,0.23334]
[1766346834374,0.00126255,88643.0,88621.0,0.23334]
[1766346834375,0.00568,88635.0,88621.0,0.23334]
[1766346834580,0.01128247,88633.0,88621.0,0.23334]
[1766346834774,0.00568,88635.0,88621.0,0.23334]
[1766346834775,0.01128235,88634.0,88621.0,0.244624]
[1766346834998,0.01128235,88634.0,88622.0,0.01128387]
[1766346835180,0.01128235,88634.0,88621.0,0.23334]
[1766346835377,0.01128273,88631.0,88621.0,0.23334]
[1766346835584,0.01128247,88633.0,88621.0,0.23334]
[1766346835802,0.01128247,88633.0,88619.0,0.13540426]
[1766346836081,0.01128247,88633.0,88619.0,0.13549689]
[1766346836322,0.01128247,88633.0,88621.0,0.011284]
[1766346836533,0.01128247,88633.0,88620.0,0.01128413]
[1766346836853,0.0112826,88632.0,88619.0,0.13549689]
[1766346837040,0.01128247,88633.0,88620.0,0.01128413]
[1766346837201,0.0112826,88632.0,88619.0,0.13549689]
[1766346837405,0.01128247,88633.0,88620.0,0.01128413]
[1766346838048,0.01128273,88631.0,88619.0,0.12421263]
[1766346838194,0.00568,88635.0,88619.0,0.12421263]
[1766346838394,0.00568,88635.0,88619.0,0.13549689]
[1766346838724,0.01822477,88635.0,88619.0,0.13549689]
[1766346838928,0.01128247,88633.0,88621.0,0.011284]
[1766346839105,0.00126255,88633.0,88622.0,0.01128387]
[1766346839867,0.00126255,88633.0,88621.0,0.011284]
[1766346840060,0.01128235,88634.0,88621.0,0.011284]
[1766346840571,0.01128235,88634.0,88622.0,0.01128387]
[1766346840894,0.01696222,88635.0,88622.0,0.01128387]
[1766346841065,0.00126255,88634.0,88623.0,0.01128375]
[1766346841209,0.00568,88635.0,88623.0,0.01128375]
[1766346841427,0.00568,88635.0,88624.0,0.01128362]
[1766346841626,0.01128146,88641.0,88629.0,0.01128298]
[1766346841918,0.00568,88640.0,88628.0,0.13540311]
[1766346842068,0.01696158,88640.0,88628.0,0.12412]
[1766346842265,0.01696158,88640.0,88627.0,0.24462324]
[1766346842466,0.01696158,88640.0,88627.0,0.01128324]
[1766346842932,0.01128184,88638.0,88626.0,0.01128337]
[1766346843077,0.01128171,88639.0,88626.0,0.01128337]
[1766346843280,0.01128171,88639.0,88627.0,0.01128324]
[1766346844098,0.01128171,88639.0,88626.0,0.01128337]
[1766346845305,0.01696158,88640.0,88627.0,0.01128324]
[1766346846392,0.01696158,88640.0,88628.0,0.01128311]
[1766346846801,0.01696158,88640.0,88627.0,0.01128324]
[1766346847053,0.00568,88640.0,88629.0,0.01128298]
[1766346847222,0.00568,88640.0,88628.0,0.01128311]
[1766346848074,0.01128171,88639.0,88627.0,0.01128324]
[1766346848440,0.01696158,88640.0,88627.0,0.01128324]
[1766346849047,0.00568,88640.0,88628.0,0.01128311]
[1766346849250,0.01357251,88643.0,88630.0,0.01128286]